[Event "Snabb-SM för veteraner, 65+ 2019"]
[Site "Schackcentrum, Vegagatan 20, Gothenburg, Sweden"]
[Date "2019.10.05"]
[Round "2.5"]
[White "Fransson, Lennart"]
[Black "Olsson, Torgny"]
[Result "1-0"]
[TimeControl "15 minutes + 10 seconds per move from move one"]
[WhiteFideId "1706756"]
[BlackFideId "1717340"]
[WhiteElo "1983"]
[BlackElo "1716"]

1. c4 {[%clk 00:15:18]} {[%emt 00:00:01]} Nf6 {[%clk 00:15:11]} {[%emt
00:00:10]} 2. g3 {[%clk 00:15:25]} {[%emt 00:00:02]} g6 {[%clk 00:15:12]}
{[%emt 00:00:10]} 3. Bg2 {[%clk 00:15:32]} {[%emt 00:00:02]} Bg7 {[%clk
00:15:06]} {[%emt 00:00:16]} 4. Nc3 {[%clk 00:15:41]} {[%emt 00:00:02]} d6
{[%clk 00:15:04]} {[%emt 00:00:12]} 5. d3 {[%clk 00:15:41]} {[%emt 00:00:09]}
O-O {[%clk 00:14:57]} {[%emt 00:00:18]} 6. e4 {[%clk 00:15:45]} {[%emt
00:00:06]} e5 {[%clk 00:14:14]} {[%emt 00:00:53]} 7. Nge2 {[%clk 00:15:52]}
{[%emt 00:00:03]} c6 {[%clk 00:13:03]} {[%emt 00:01:22]} 8. O-O {[%clk
00:15:56]} {[%emt 00:00:05]} Bg4 {[%clk 00:12:45]} {[%emt 00:00:28]} 9. h3
{[%clk 00:16:03]} {[%emt 00:00:03]} Be6 {[%clk 00:12:20]} {[%emt 00:00:36]} 10.
f4 {[%clk 00:15:51]} {[%emt 00:00:22]} exf4 {[%clk 00:12:13]} {[%emt 00:00:17]}
11. gxf4 {[%clk 00:15:32]} {[%emt 00:00:28]} Qd7 {[%clk 00:12:05]} {[%emt
00:00:19]} 12. f5 {[%clk 00:14:24]} {[%emt 00:01:18]} gxf5 {[%clk 00:12:05]}
{[%emt 00:00:11]} 13. Bg5 {[%clk 00:14:31]} {[%emt 00:00:02]} Ne8 {[%clk
00:10:23]} {[%emt 00:01:53]} 14. exf5 {[%clk 00:12:24]} {[%emt 00:02:17]} Bxf5
{[%clk 00:10:31]} {[%emt 00:00:03]} 15. Rxf5 {[%clk 00:11:51]} {[%emt
00:00:43]} Qxf5 {[%clk 00:10:30]} {[%emt 00:00:10]} 16. Be7 {[%clk 00:11:58]}
{[%emt 00:00:02]} Nf6 {[%clk 00:09:42]} {[%emt 00:00:59]} 17. Bxf8 {[%clk
00:12:04]} {[%emt 00:00:05]} Kxf8 {[%clk 00:09:50]} {[%emt 00:00:02]} 18. Ng3
{[%clk 00:11:56]} {[%emt 00:00:18]} Qg6 {[%clk 00:09:39]} {[%emt 00:00:21]} 19.
Qf3 {[%clk 00:11:45]} {[%emt 00:00:20]} Nbd7 {[%clk 00:09:38]} {[%emt
00:00:12]} 20. d4 {[%clk 00:11:31]} {[%emt 00:00:23]} Re8 {[%clk 00:09:41]}
{[%emt 00:00:08]} 21. Nf5 {[%clk 00:11:06]} {[%emt 00:00:35]} Nh5 {[%clk
00:07:46]} {[%emt 00:02:06]} 22. Ne4 {[%clk 00:09:44]} {[%emt 00:01:31]} Ndf6
{[%clk 00:05:03]} {[%emt 00:02:53]} 23. Nexd6 {[%clk 00:09:06]} {[%emt
00:00:48]} Re6 {[%clk 00:04:27]} {[%emt 00:00:46]} 24. Nxb7 {[%clk 00:08:24]}
{[%emt 00:00:52]} Ne4 {[%clk 00:04:12]} {[%emt 00:00:26]} 25. Rd1 {[%clk
00:06:41]} {[%emt 00:01:52]} Nhg3 {[%clk 00:02:24]} {[%emt 00:01:59]} 26. Nxg3
{[%clk 00:05:55]} {[%emt 00:00:56]} Nxg3 {[%clk 00:01:42]} {[%emt 00:00:52]} 27.
Nc5 {[%clk 00:03:06]} {[%emt 00:02:59]} Rf6 {[%clk 00:01:07]} {[%emt 00:00:46]}
28. Nd7+ {[%clk 00:03:13]} {[%emt 00:00:02]} Kg8 {[%clk 00:01:09]} {[%emt
00:00:08]} 29. Nxf6+ {[%clk 00:03:21]} {[%emt 00:00:02]} Bxf6 {[%clk 00:01:18]}
{[%emt 00:00:02]} 30. d5 {[%clk 00:02:50]} {[%emt 00:00:41]} cxd5 {[%clk
00:01:15]} {[%emt 00:00:13]} 31. cxd5 {[%clk 00:02:59]} {[%emt 00:00:02]} Bxb2
{[%clk 00:01:20]} {[%emt 00:00:05]} 32. Qg4 {[%clk 00:02:54]} {[%emt 00:00:13]}
Qxg4 {[%clk 00:01:09]} {[%emt 00:00:23]} 33. hxg4 {[%clk 00:03:02]} {[%emt
00:00:01]} Ne2+ {[%clk 00:00:58]} {[%emt 00:00:22]} 34. Kf2 {[%clk 00:02:59]}
Nf4 {[%clk 00:02:57]} {[%emt 00:01:45]} 35. d6 {[%clk 00:02:50]} {[%emt
00:00:12]} Bf6 {[%clk 00:03:00]} {[%emt 00:00:07]} 36. d7 {[%clk 00:02:23]}
{[%emt 00:00:36]} Bd8 {[%clk 00:02:28]} {[%emt 00:00:42]} 37. Kg3 {[%clk
00:01:44]} {[%emt 00:00:50]} Ne6 {[%clk 00:01:38]} {[%emt 00:01:00]} 38. Bd5
{[%clk 00:01:46]} {[%emt 00:00:07]} Kf8 {[%clk 00:01:19]} {[%emt 00:00:30]} 39.
Bxe6 {[%clk 00:01:54]} {[%emt 00:00:03]} fxe6 {[%clk 00:01:28]} 40. Kf4 {[%clk
00:01:50]} {[%emt 00:00:11]} h6 {[%clk 00:01:21]} {[%emt 00:00:19]} 41. Ke4
{[%clk 00:01:44]} {[%emt 00:00:16]} Ke7 {[%clk 00:01:24]} {[%emt 00:00:08]} 42.
Rh1 {[%clk 00:01:33]} {[%emt 00:00:20]} Kxd7 {[%clk 00:01:28]} {[%emt
00:00:07]} 43. Rxh6 {[%clk 00:01:42]} {[%emt 00:00:01]} Kd6 {[%clk 00:01:30]}
{[%emt 00:00:08]} 44. Kf4 {[%clk 00:01:37]} {[%emt 00:00:14]} Kd5 {[%clk
00:01:07]} {[%emt 00:00:34]} 45. Rh7 {[%clk 00:01:28]} {[%emt 00:00:18]} e5+
{[%clk 00:00:50]} {[%emt 00:00:28]} 46. Kf5 {[%clk 00:01:34]} {[%emt 00:00:03]}
Bb6 {[%clk 00:00:56]} {[%emt 00:00:04]} 47. Rd7+ {[%clk 00:01:30]} {[%emt
00:00:14]} Kc6 {[%clk 00:01:02]} {[%emt 00:00:05]} 48. Rd1 {[%clk 00:01:36]}
{[%emt 00:00:04]} Bd4 {[%clk 00:01:07]} {[%emt 00:00:05]} 49. g5 {[%clk
00:01:40]} {[%emt 00:00:05]} Kd5 {[%clk 00:00:22]} {[%emt 00:00:56]} 50. g6
{[%clk 00:01:38]} {[%emt 00:00:12]} e4 {[%clk 00:00:29]} {[%emt 00:00:03]} 51.
Rxd4+ {[%clk 00:01:40]} {[%emt 00:00:07]} Kxd4 {[%clk 00:00:36]} {[%emt
00:00:04]} 52. g7 {[%clk 00:01:49]} {[%emt 00:00:01]} e3 {[%clk 00:00:41]}
{[%emt 00:00:05]} 53. g8=Q {[%clk 00:01:56]} {[%emt 00:00:02]} e2 {[%clk
00:00:46]} {[%emt 00:00:07]} 54. Qg3 {[%clk 00:01:57]} {[%emt 00:00:08]} a5
{[%clk 00:00:33]} {[%emt 00:00:23]} 55. Qe1 {[%emt 00:00:20]} 1-0

[Event "Snabb-SM för veteraner, 65+ 2019"]
[Site "Schackcentrum, Vegagatan 20, Gothenburg, Sweden"]
[Date "2019.10.05"]
[Round "2.6"]
[White "Alfven, Jorgen"]
[Black "Nordstrom, Per-Olov"]
[Result "1-0"]
[TimeControl "15 minutes + 10 seconds per move from move one"]
[WhiteFideId "1715950"]
[BlackFideId "1714317"]
[WhiteElo "1791"]
[BlackElo "1940"]

1. d4 {[%clk 00:15:16]} Nf6 {[%clk 00:15:16]} 2. Nf3 {[%clk 00:15:16]} c5
{[%clk 00:15:16]} 3. e3 {[%clk 00:15:16]} g6 {[%clk 00:14:51]} {[%emt
01:06:59]} 4. Bd3 {[%clk 00:15:13]} Bg7 {[%clk 00:14:53]} {[%emt 00:00:24]} 5.
c3 {[%clk 00:15:17]} cxd4 {[%clk 00:14:49]} {[%emt 00:00:19]} 6. cxd4 {[%clk
00:15:16]} d5 {[%clk 00:14:40]} {[%emt 00:00:30]} 7. O-O {[%clk 00:15:24]} O-O
{[%clk 00:14:46]} {[%emt 00:00:05]} 8. Nc3 {[%clk 00:15:30]} Nc6 {[%clk
00:14:46]} {[%emt 00:00:16]} 9. a3 {[%clk 00:15:37]} a6 {[%clk 00:14:07]}
{[%emt 00:00:52]} 10. b4 {[%clk 00:15:20]} b5 {[%clk 00:13:47]} {[%emt
00:00:57]} 11. Bb2 {[%clk 00:15:18]} Bb7 {[%clk 00:13:28]} {[%emt 00:00:40]} 12.
Qe2 {[%clk 00:15:13]} e6 {[%clk 00:13:01]} {[%emt 00:00:53]} 13. Rac1 {[%clk
00:14:50]} Rc8 {[%clk 00:13:02]} {[%emt 00:00:42]} 14. h3 {[%clk 00:14:46]}
{[%emt 00:00:13]} Nd7 {[%clk 00:12:53]} {[%emt 00:00:19]} 15. Nd2 {[%clk
00:14:08]} {[%emt 00:00:48]} Nb6 {[%clk 00:12:00]} {[%emt 00:01:04]} 16. f4
{[%clk 00:12:53]} {[%emt 00:01:24]} Nc4 {[%clk 00:12:00]} {[%emt 00:00:11]} 17.
Nf3 {[%clk 00:12:00]} {[%emt 00:01:02]} f6 {[%clk 00:10:58]} {[%emt 00:01:13]}
18. Rb1 {[%clk 00:10:48]} {[%emt 00:01:22]} e5 {[%clk 00:10:28]} {[%emt
00:00:40]} 19. dxe5 {[%clk 00:10:18]} {[%emt 00:00:40]} fxe5 {[%clk 00:10:26]}
{[%emt 00:00:12]} 20. Rfd1 {[%clk 00:10:12]} {[%emt 00:00:15]} exf4 {[%clk
00:08:31]} {[%emt 00:02:06]} 21. Bxc4 {[%clk 00:10:06]} {[%emt 00:00:16]} bxc4
{[%clk 00:08:06]} {[%emt 00:00:35]} 22. Nxd5 {[%clk 00:09:18]} {[%emt
00:00:58]} Bxb2 {[%clk 00:07:34]} {[%emt 00:00:41]} 23. Rxb2 {[%clk 00:07:29]}
{[%emt 00:01:59]} fxe3 {[%clk 00:07:21]} {[%emt 00:00:24]} 24. Qxe3 {[%clk
00:07:20]} {[%emt 00:00:19]} Qe8 {[%clk 00:06:12]} {[%emt 00:01:18]} 25. Qg5
{[%clk 00:06:00]} {[%emt 00:01:31]} Qf7 {[%clk 00:05:05]} {[%emt 00:01:17]} 26.
Re1 {[%clk 00:05:36]} {[%emt 00:00:33]} Rcd8 {[%clk 00:04:09]} {[%emt
00:01:07]} 27. Rd2 {[%clk 00:05:17]} {[%emt 00:00:28]} c3 {[%clk 00:03:27]}
{[%emt 00:00:53]} 28. Nxc3 {[%clk 00:05:01]} {[%emt 00:00:26]} Rxd2 {[%clk
00:03:25]} {[%emt 00:00:12]} 29. Qxd2 {[%clk 00:05:09]} {[%emt 00:00:02]} Rd8
{[%clk 00:03:14]} {[%emt 00:00:21]} 30. Qe3 {[%clk 00:05:04]} {[%emt 00:00:16]}
Qc4 {[%clk 00:02:42]} {[%emt 00:00:42]} 31. Ng5 {[%clk 00:04:26]} {[%emt
00:00:48]} h6 {[%clk 00:02:24]} {[%emt 00:00:29]} 32. Ne6 {[%clk 00:03:54]}
{[%emt 00:00:41]} Re8 {[%clk 00:01:48]} {[%emt 00:00:46]} 33. Na4 {[%clk
00:03:21]} {[%emt 00:00:43]} Nd4 {[%clk 00:01:37]} {[%emt 00:00:21]} 34. Nac5
{[%clk 00:03:26]} {[%emt 00:00:05]} Bd5 {[%clk 00:01:34]} {[%emt 00:00:13]} 35.
Qg3 {[%clk 00:02:45]} {[%emt 00:00:51]} Nxe6 {[%clk 00:01:02]} {[%emt
00:00:42]} 36. Qxg6+ {[%clk 00:02:50]} {[%emt 00:00:06]} Kh8 {[%clk 00:01:01]}
{[%emt 00:00:11]} 37. Qxh6+ {[%clk 00:02:58]} {[%emt 00:00:01]} Kg8 {[%clk
00:01:10]} {[%emt 00:00:01]} 38. Qg6+ {[%clk 00:03:03]} {[%emt 00:00:05]} Ng7
{[%clk 00:01:01]} {[%emt 00:00:19]} 39. Rxe8# {[%clk 00:03:09]} {[%emt
00:00:03]} 1-0

[Event "Snabb-SM för veteraner, 65+ 2019"]
[Site "Schackcentrum, Vegagatan 20, Gothenburg, Sweden"]
[Date "2019.10.05"]
[Round "2.7"]
[White "Gustavsson, Sture"]
[Black "Herrman, Jan"]
[Result "0-1"]
[TimeControl "15 minutes + 10 seconds per move from move one"]
[WhiteFideId "1710168"]
[BlackFideId "1731882"]
[WhiteElo "1930"]
[BlackElo "1929"]

1. d4 {[%clk 00:15:17]} {[%emt 00:00:02]} Nf6 {[%clk 00:15:11]} {[%emt
00:00:08]} 2. Nf3 {[%clk 00:15:26]} e6 {[%clk 00:15:12]} {[%emt 00:00:11]} 3.
e3 {[%clk 00:15:34]} {[%emt 00:00:02]} d5 {[%clk 00:14:56]} {[%emt 00:00:25]} 4.
b3 {[%clk 00:15:27]} {[%emt 00:00:18]} c5 {[%clk 00:14:56]} {[%emt 00:00:09]} 5.
Bb2 {[%clk 00:15:34]} {[%emt 00:00:03]} Nc6 {[%clk 00:14:58]} {[%emt 00:00:08]}
6. Bd3 {[%clk 00:15:29]} {[%emt 00:00:16]} b6 {[%clk 00:14:44]} {[%emt
00:00:24]} 7. O-O {[%clk 00:15:37]} {[%emt 00:00:02]} Bd6 {[%clk 00:14:49]}
{[%emt 00:00:04]} 8. Ne5 {[%clk 00:14:49]} {[%emt 00:00:57]} Qc7 {[%clk
00:14:21]} {[%emt 00:00:38]} 9. Nxc6 {[%clk 00:13:43]} {[%emt 00:01:17]} Qxc6
{[%clk 00:14:25]} {[%emt 00:00:06]} 10. Nd2 {[%clk 00:13:09]} {[%emt 00:00:44]}
Qc7 {[%clk 00:13:30]} {[%emt 00:01:05]} 11. f4 {[%clk 00:13:10]} {[%emt
00:00:10]} Bb7 {[%clk 00:12:56]} {[%emt 00:00:44]} 12. Nf3 {[%clk 00:13:05]}
{[%emt 00:00:15]} cxd4 {[%clk 00:12:33]} {[%emt 00:00:33]} 13. Nxd4 {[%clk
00:12:04]} {[%emt 00:01:10]} a6 {[%clk 00:11:45]} {[%emt 00:00:59]} 14. c4
{[%clk 00:10:59]} {[%emt 00:01:16]} dxc4 {[%clk 00:09:28]} {[%emt 00:02:26]} 15.
Bxc4 {[%clk 00:09:50]} {[%emt 00:01:19]} Bd5 {[%clk 00:08:39]} {[%emt
00:01:00]} 16. Rc1 {[%clk 00:09:48]} {[%emt 00:00:12]} Qb7 {[%clk 00:07:27]}
{[%emt 00:01:21]} 17. Qe2 {[%clk 00:08:35]} {[%emt 00:01:23]} O-O {[%clk
00:06:54]} {[%emt 00:00:44]} 18. Bxd5 {[%clk 00:05:38]} {[%emt 00:03:07]} Qxd5
{[%clk 00:06:48]} {[%emt 00:00:16]} 19. Rfd1 {[%clk 00:05:40]} {[%emt
00:00:09]} Qe4 {[%clk 00:03:33]} {[%emt 00:03:25]} 20. h3 {[%clk 00:02:48]}
{[%emt 00:03:03]} Nd5 {[%clk 00:03:33]} {[%emt 00:00:09]} 21. Re1 {[%clk
00:02:09]} {[%emt 00:00:49]} Bb4 {[%clk 00:03:19]} {[%emt 00:00:23]} 22. Qc2
{[%clk 00:01:36]} {[%emt 00:00:44]} Qxc2 {[%clk 00:03:14]} {[%emt 00:00:14]} 23.
Nxc2 {[%clk 00:01:45]} {[%emt 00:00:01]} Bxe1 {[%clk 00:03:22]} {[%emt
00:00:02]} 24. Rxe1 {[%clk 00:01:53]} Rac8 {[%clk 00:03:17]} {[%emt 00:00:15]}
25. Re2 {[%clk 00:01:59]} {[%emt 00:00:04]} Nc3 {[%clk 00:02:56]} {[%emt
00:00:31]} 26. Rd2 {[%clk 00:01:07]} {[%emt 00:01:03]} Nxa2 {[%clk 00:02:39]}
{[%emt 00:00:26]} 27. Ba3 {[%clk 00:01:10]} {[%emt 00:00:07]} Rfd8 {[%clk
00:02:38]} {[%emt 00:00:11]} 28. Nd4 {[%clk 00:01:19]} Nc3 {[%clk 00:02:31]}
{[%emt 00:00:17]} 29. Bb2 {[%clk 00:01:14]} {[%emt 00:00:16]} Ne4 {[%clk
00:02:30]} {[%emt 00:00:10]} 30. Re2 {[%clk 00:01:18]} {[%emt 00:00:06]} b5
{[%clk 00:02:26]} {[%emt 00:00:14]} 31. g4 {[%clk 00:01:26]} {[%emt 00:00:01]}
b4 {[%clk 00:02:09]} {[%emt 00:00:27]} 32. Kg2 {[%clk 00:01:31]} {[%emt
00:00:05]} Nc3 {[%clk 00:02:15]} {[%emt 00:00:04]} 33. Rd2 {[%clk 00:01:21]}
{[%emt 00:00:20]} Nb5 {[%clk 00:01:51]} {[%emt 00:00:34]} 34. Kf3 {[%clk
00:01:21]} {[%emt 00:00:09]} Nxd4+ {[%clk 00:01:48]} {[%emt 00:00:14]} 35. Bxd4
{[%clk 00:01:29]} {[%emt 00:00:03]} Rc1 {[%clk 00:01:42]} {[%emt 00:00:15]} 36.
Ra2 {[%clk 00:01:25]} {[%emt 00:00:14]} Rb1 {[%clk 00:01:35]} {[%emt 00:00:17]}
37. Rxa6 {[%clk 00:01:34]} {[%emt 00:00:02]} Rxb3 {[%clk 00:01:44]} {[%emt
00:00:01]} 38. g5 {[%clk 00:01:18]} {[%emt 00:00:26]} h6 {[%clk 00:01:45]}
{[%emt 00:00:09]} 39. h4 {[%clk 00:01:26]} {[%emt 00:00:01]} Rxd4 {[%clk
00:01:53]} {[%emt 00:00:03]} 40. g6 {[%clk 00:01:07]} {[%emt 00:00:29]} fxg6
{[%clk 00:01:53]} {[%emt 00:00:10]} 41. Rxe6 {[%clk 00:01:16]} {[%emt
00:00:01]} Rdd3 {[%clk 00:01:59]} {[%emt 00:00:05]} 42. Kf2 {[%clk 00:01:10]}
{[%emt 00:00:15]} Kf7 {[%clk 00:02:02]} {[%emt 00:00:06]} 43. Re5 {[%clk
00:01:19]} Kf6 {[%clk 00:02:07]} {[%emt 00:00:05]} 44. Ke2 {[%clk 00:01:25]}
{[%emt 00:00:04]} Rxe3+ {[%clk 00:02:14]} {[%emt 00:00:03]} 45. Rxe3 {[%emt
00:00:01]} Rxe3+ 46. Kxe3 {[%clk 00:01:30]} {[%emt 00:00:02]} Kf5 {[%clk
00:02:24]} {[%emt 00:00:01]} 0-1

[Event "Snabb-SM för veteraner, 65+ 2019"]
[Site "Schackcentrum, Vegagatan 20, Gothenburg, Sweden"]
[Date "2019.10.05"]
[Round "2.8"]
[White "Westerlind, Sture"]
[Black "Bohlin, Jan"]
[Result "0-1"]
[TimeControl "15 minutes + 10 seconds per move from move one"]
[WhiteFideId "1745654"]
[BlackFideId "1758616"]
[WhiteElo "1806"]
[BlackElo "1794"]

1. d4 {[%clk 00:15:19]} Nf6 {[%clk 00:15:19]} {[%emt 00:00:01]} 2. Bf4 {[%clk
00:15:26]} {[%emt 00:00:02]} d5 {[%clk 00:15:26]} {[%emt 00:00:03]} 3. Nf3
{[%clk 00:15:35]} {[%emt 00:00:02]} c5 {[%clk 00:15:34]} {[%emt 00:00:02]} 4.
e3 {[%clk 00:15:43]} {[%emt 00:00:01]} Nc6 {[%clk 00:15:40]} {[%emt 00:00:03]}
5. Be2 {[%clk 00:15:48]} {[%emt 00:00:05]} Bf5 {[%clk 00:15:27]} {[%emt
00:00:23]} 6. c3 {[%clk 00:15:34]} {[%emt 00:00:25]} e6 {[%clk 00:15:36]}
{[%emt 00:00:01]} 7. O-O {[%clk 00:15:41]} {[%emt 00:00:03]} Qb6 {[%clk
00:15:13]} {[%emt 00:00:34]} 8. Qb3 {[%clk 00:14:48]} {[%emt 00:01:02]} Be7
{[%clk 00:15:04]} {[%emt 00:00:19]} 9. Nbd2 {[%clk 00:14:51]} {[%emt 00:00:07]}
O-O {[%clk 00:15:03]} {[%emt 00:00:11]} 10. Ne5 {[%clk 00:14:40]} {[%emt
00:00:20]} c4 {[%clk 00:14:34]} {[%emt 00:00:39]} 11. Qxb6 {[%clk 00:14:41]}
{[%emt 00:00:08]} axb6 {[%clk 00:14:43]} {[%emt 00:00:02]} 12. b4 {[%clk
00:14:02]} {[%emt 00:00:49]} b5 {[%clk 00:14:29]} {[%emt 00:00:24]} 13. f3
{[%clk 00:13:38]} {[%emt 00:00:34]} Ra3 {[%clk 00:14:27]} {[%emt 00:00:12]} 14.
g4 {[%clk 00:13:20]} {[%emt 00:00:28]} Bg6 {[%clk 00:14:26]} {[%emt 00:00:10]}
15. h4 {[%clk 00:13:22]} {[%emt 00:00:08]} Nxe5 {[%clk 00:13:25]} {[%emt
00:01:11]} 16. dxe5 {[%clk 00:13:26]} {[%emt 00:00:06]} Nd7 {[%clk 00:13:17]}
{[%emt 00:00:18]} 17. Rfc1 {[%clk 00:13:26]} {[%emt 00:00:10]} h6 {[%clk
00:13:12]} {[%emt 00:00:16]} 18. h5 {[%clk 00:12:50]} {[%emt 00:00:46]} Bh7
{[%clk 00:13:19]} {[%emt 00:00:03]} 19. e4 {[%clk 00:12:40]} {[%emt 00:00:20]}
dxe4 {[%clk 00:13:13]} {[%emt 00:00:16]} 20. fxe4 {[%clk 00:12:47]} {[%emt
00:00:02]} Rfa8 {[%clk 00:12:53]} {[%emt 00:00:31]} 21. Rc2 {[%clk 00:12:36]}
{[%emt 00:00:21]} f6 {[%clk 00:12:10]} {[%emt 00:00:53]} 22. exf6 {[%clk
00:12:23]} {[%emt 00:00:23]} Nxf6 {[%clk 00:11:44]} {[%emt 00:00:36]} 23. Bf3
{[%clk 00:12:21]} {[%emt 00:00:11]} Nd5 {[%clk 00:11:05]} {[%emt 00:00:49]} 24.
Be5 {[%clk 00:12:12]} {[%emt 00:00:19]} Bf6 {[%clk 00:09:56]} {[%emt 00:01:20]}
25. Bxf6 {[%clk 00:11:54]} {[%emt 00:00:27]} Nxf6 {[%clk 00:09:44]} {[%emt
00:00:23]} 26. Rb2 {[%clk 00:09:25]} {[%emt 00:02:39]} Rxc3 {[%clk 00:09:04]}
{[%emt 00:00:50]} 27. Re1 {[%clk 00:08:40]} {[%emt 00:00:54]} e5 {[%clk
00:08:01]} {[%emt 00:01:14]} 28. Kg2 {[%clk 00:08:42]} {[%emt 00:00:08]} Kf8
{[%clk 00:07:17]} {[%emt 00:00:54]} 29. Nb1 {[%clk 00:08:47]} {[%emt 00:00:05]}
Rd3 {[%clk 00:07:19]} {[%emt 00:00:08]} 30. Ree2 {[%clk 00:07:51]} {[%emt
00:01:06]} Rad8 {[%clk 00:06:35]} {[%emt 00:00:54]} 31. Rbc2 {[%clk 00:07:30]}
{[%emt 00:00:31]} Ne8 {[%clk 00:04:49]} {[%emt 00:01:56]} 32. Nc3 {[%clk
00:07:25]} {[%emt 00:00:15]} Nd6 {[%clk 00:04:50]} {[%emt 00:00:09]} 33. a4
{[%clk 00:06:31]} {[%emt 00:01:03]} bxa4 {[%clk 00:04:55]} {[%emt 00:00:06]} 34.
Nxa4 {[%clk 00:06:40]} {[%emt 00:00:01]} Rb3 {[%clk 00:04:30]} {[%emt
00:00:34]} 35. Nc5 {[%clk 00:06:49]} {[%emt 00:00:01]} Rxb4 {[%clk 00:03:57]}
{[%emt 00:00:43]} 36. Ne6+ {[%clk 00:06:57]} {[%emt 00:00:02]} Ke7 {[%clk
00:04:05]} {[%emt 00:00:01]} 37. Nxd8 {[%clk 00:07:05]} {[%emt 00:00:02]} Kxd8
{[%clk 00:04:14]} {[%emt 00:00:01]} 38. Red2 {[%clk 00:06:58]} {[%emt
00:00:16]} Kc7 {[%clk 00:04:14]} {[%emt 00:00:10]} 39. Rd5 {[%clk 00:07:07]}
{[%emt 00:00:01]} Nxe4 {[%clk 00:03:56]} {[%emt 00:00:28]} 40. Rxe5 {[%clk
00:07:10]} {[%emt 00:00:07]} Ng5 {[%clk 00:03:53]} {[%emt 00:00:13]} 41. Re7+
{[%clk 00:07:14]} {[%emt 00:00:06]} Kd6 {[%clk 00:03:13]} {[%emt 00:00:50]} 42.
Rce2 {[%clk 00:07:23]} {[%emt 00:00:01]} Nxf3 {[%clk 00:03:11]} {[%emt
00:00:11]} 43. Kxf3 {[%clk 00:07:32]} {[%emt 00:00:02]} Bd3 {[%clk 00:02:55]}
{[%emt 00:00:26]} 44. R2e6+ {[%clk 00:07:36]} {[%emt 00:00:06]} Kd5 {[%clk
00:02:54]} {[%emt 00:00:12]} 45. Re5+ {[%clk 00:07:33]} {[%emt 00:00:12]} Kd4
{[%clk 00:02:42]} {[%emt 00:00:21]} 46. Ra5 {[%clk 00:07:40]} {[%emt 00:00:03]}
c3 {[%clk 00:02:36]} {[%emt 00:00:16]} 47. Rxg7 {[%clk 00:07:19]} {[%emt
00:00:31]} c2 {[%clk 00:02:41]} {[%emt 00:00:05]} 48. Rd7+ {[%clk 00:07:21]}
{[%emt 00:00:08]} Kc3 {[%clk 00:02:40]} {[%emt 00:00:12]} 49. Ra3+ {[%clk
00:06:02]} {[%emt 00:01:29]} Kb2 {[%clk 00:02:40]} {[%emt 00:00:08]} 50. Raxd3
{[%clk 00:06:06]} {[%emt 00:00:07]} c1=Q {[%clk 00:02:40]} {[%emt 00:00:10]} 51.
Rd2+ {[%clk 00:06:12]} {[%emt 00:00:03]} Kb3 {[%clk 00:01:54]} {[%emt
00:00:56]} 52. R7d3+ {[%clk 00:05:55]} {[%emt 00:00:27]} Ka4 {[%clk 00:02:00]}
{[%emt 00:00:04]} 53. Ra2+ {[%clk 00:06:01]} {[%emt 00:00:04]} Kb5 {[%clk
00:02:07]} {[%emt 00:00:03]} 54. Rad2 {[%clk 00:04:44]} {[%emt 00:01:27]} Qh1+
{[%clk 00:02:02]} {[%emt 00:00:14]} 55. Kg3 {[%clk 00:04:44]} {[%emt 00:00:10]}
Rb1 {[%clk 00:01:23]} {[%emt 00:00:49]} 56. Rd5+ {[%clk 00:04:44]} {[%emt
00:00:10]} Ka6 {[%clk 00:01:15]} {[%emt 00:00:18]} 57. Rd6+ {[%clk 00:04:47]}
{[%emt 00:00:07]} Ka7 {[%clk 00:01:07]} {[%emt 00:00:19]} 58. R6d3 {[%clk
00:03:03]} {[%emt 00:01:54]} Rg1+ {[%emt 00:00:08]} 59. Kf4 {[%clk 00:03:08]}
{[%emt 00:00:02]} Rf1+ {[%clk 00:01:09]} {[%emt 00:00:12]} 60. Ke5 {[%clk
00:03:10]} {[%emt 00:00:08]} Re1+ {[%clk 00:01:03]} {[%emt 00:00:16]} 61. Kf6
{[%clk 00:03:03]} {[%emt 00:00:17]} Qc6+ {[%clk 00:01:02]} {[%emt 00:00:10]} 62.
Rd6 {[%clk 00:03:09]} {[%emt 00:00:05]} Qf3+ {[%clk 00:01:04]} {[%emt
00:00:07]} 63. Kg7 {[%clk 00:03:06]} {[%emt 00:00:13]} Qxg4 {[%clk 00:00:57]}
{[%emt 00:00:17]} 64. Kxh6 {[%clk 00:02:53]} {[%emt 00:00:23]} Re6+ {[%clk
00:01:04]} {[%emt 00:00:02]} 65. Rxe6 Qxe6+ {[%clk 00:01:13]} 66. Kg5 {[%clk
00:02:57]} {[%emt 00:00:04]} Qe5+ {[%clk 00:01:16]} {[%emt 00:00:07]} 67. Kg6
{[%clk 00:02:59]} {[%emt 00:00:08]} Qg3+ {[%clk 00:01:11]} {[%emt 00:00:14]} 68.
Kf5 {[%clk 00:02:59]} {[%emt 00:00:10]} Qf3+ {[%clk 00:01:01]} {[%emt
00:00:21]} 69. Kg6 {[%clk 00:03:02]} {[%emt 00:00:07]} b5 {[%clk 00:00:59]}
{[%emt 00:00:12]} 70. h6 {[%clk 00:03:10]} {[%emt 00:00:02]} Qg4+ {[%clk
00:01:02]} {[%emt 00:00:06]} 71. Kh7 {[%clk 00:03:05]} {[%emt 00:00:16]} b4
{[%clk 00:01:07]} {[%emt 00:00:05]} 72. Kh8 {[%clk 00:02:44]} {[%emt 00:00:30]}
Qg6 {[%clk 00:00:54]} {[%emt 00:00:24]} 73. Rd8 {[%clk 00:02:39]} {[%emt
00:00:15]} Qf6+ {[%clk 00:01:01]} {[%emt 00:00:03]} 74. Rd7+ {[%emt 00:00:05]}
0-1